[Event "EYCC Open-U18 2019"]
[Site "Bratislava"]
[Date "2019.08.07"]
[Round "6.22"]
[White "Tisaj, Domen"]
[Black "Kukas, Oliver"]
[Result "1-0"]
[ECO "D80"]
[WhiteElo "2232"]
[BlackElo "2082"]
[Annotator "NA"]
[PlyCount "75"]
[EventDate "2019.08.02"]
[EventType "swiss"]
[EventCountry "SVK"]
[SourceTitle "playchess.com"]
[Source "ChessBase"]
[SourceQuality "1"]
[TimeControl "40/5400+30:1800+30"]

1. d4 {[%emt 0:00:00]} Nf6 {[%emt 0:00:00]} 2. c4 {[%emt 0:00:00]} g6 {[%emt 0:00:00]} 3. Nc3 {[%emt 0:00:00]} d5 {[%emt 0:00:00]} 4. e3 {[%emt 0:00:03]} Bg7 {[%emt 0:00:00]} 5. Qb3 {[%emt 0:00:08]} dxc4 {[%emt 0:01:21]} 6. Bxc4 {[%emt 0:00:17]} O-O {[%emt 0:00:07]} 7. Nf3 {[%emt 0:00:29]} c5 {[%emt 0:00:49]} 8. d5 {[%emt 0:03:30]} Re8 {[%emt 0:09:54]} 9. O-O {[%emt 0:03:54]} a6 {[%emt 0:09:55]} 10. a4 {[%emt 0:00:14]} e6 {[%emt 0:05:07]} 11. e4 {[%emt 0:04:48]} exd5 {[%emt 0:00:37]} 12. Nxd5 {[%emt 0:00:32]} Nxd5 {[%emt 0:00:32]} 13. Bxd5 {[%emt 0:00:25]} Be6 {[%emt 0:06:50]} 14. Qxb7 {[%emt 0:32:20]} Bxd5 {[%emt 0:00:06]} 15. exd5 {[%emt 0:00:06]} Nd7 {[%emt 0:00:19]} 16. Bf4 {[%emt 0:00:56]} Re4 {[%emt 0:08:08]} 17. Bc7 {[%emt 0:07:40]} Qc8 {[%emt 0:02:38]} 18. Qc6 {[%emt 0:00:24]} Rb4 {[%emt 0:05:57]} 19. Rae1 {[%emt 0:01:50]} Rb7 {[%emt 0:08:15]} 20. d6 {[%emt 0:03:33]} Bf6 {[%emt 0:02:34]} 21. Re8+ {[%emt 0:05:06]} Qxe8 {[%emt 0:00:10]} 22. Qxb7 {[%emt 0:00:03]} Qc8 {[%emt 0:03:34]} 23. Qd5 {[%emt 0:01:48]} Nf8 {[%emt 0:06:05]} 24. Rd1 {[%emt 0:01:31]} Ra7 {[%emt 0:03:09]} 25. Qxc5 {[%emt 0:01:24]} Rb7 {[%emt 0:00:34]} 26. Qd5 {[%emt 0:08:55]} Rxb2 {[%emt 0:00:59]} 27. a5 {[%emt 0:00:59]} Ne6 {[%emt 0:03:45]} 28. Bb6 {[%emt 0:00:55]} Qd7 {[%emt 0:00:21]} 29. Qa8+ {[%emt 0:00:56]} Kg7 {[%emt 0:00:01]} 30. Qe4 {[%emt 0:00:50]} Rb5 {[%emt 0:02:06]} 31. g3 {[%emt 0:00:26]} Rh5 {[%emt 0:03:22]} 32. Kg2 {[%emt 0:04:02]} h6 {[%emt 0:03:16]} 33. h4 {[%emt 0:00:51]} g5 {[%emt 0:02:35]} 34. Rd5 {[%emt 0:00:52]} Nf4+ {[%emt 0:06:27]} 35. gxf4 {[%emt 0:00:24]} Qg4+ {[%emt 0:00:05]} 36. Kf1 {[%emt 0:00:16]} gxh4 {[%emt 0:01:33]} 37. Rxh5 {[%emt 0:00:34]} Qxh5 {[%emt 0:00:01]} 38. Bd4 {[%emt 0:00:11]} 1-0

[Event "EYCC Open-U18 2019"]
[Site "Bratislava"]
[Date "2019.08.07"]
[Round "6.23"]
[White "Miesbauer, Jan"]
[Black "Crevatin, Leo"]
[Result "1-0"]
[ECO "B30"]
[WhiteElo "2409"]
[BlackElo "2146"]
[Annotator "NA"]
[PlyCount "61"]
[EventDate "2019.08.02"]
[EventType "swiss"]
[EventCountry "SVK"]
[SourceTitle "playchess.com"]
[Source "ChessBase"]
[SourceQuality "1"]
[TimeControl "40/5400+30:1800+30"]

1. e4 {[%emt 0:00:00]} c5 {[%emt 0:00:00]} 2. Nf3 {[%emt 0:00:00]} Nc6 {[%emt 0:00:00]} 3. Bb5 {[%emt 0:00:00]} e6 {[%emt 0:00:00]} 4. Bxc6 {[%emt 0:00:58]} bxc6 {[%emt 0:00:00]} 5. O-O {[%emt 0:01:20]} Ne7 {[%emt 0:00:00]} 6. c3 {[%emt 0:01:27]} d5 {[%emt 0:03:39]} 7. Qa4 {[%emt 0:02:26]} Bd7 {[%emt 0:07:17]} 8. Ne5 {[%emt 0:04:23]} f6 {[%emt 0:05:05]} 9. Nxd7 {[%emt 0:00:26]} Qxd7 {[%emt 0:00:06]} 10. Re1 {[%emt 0:00:34]} g6 {[%emt 0:03:40]} 11. d4 {[%emt 0:01:04]} c4 {[%emt 0:07:19]} 12. b3 {[%emt 0:01:06]} cxb3 {[%emt 0:01:58]} 13. axb3 {[%emt 0:00:59]} Kf7 {[%emt 0:03:38]} 14. c4 {[%emt 0:05:29]} dxe4 {[%emt 0:04:19]} 15. Rxe4 {[%emt 0:01:20]} f5 {[%emt 0:01:55]} 16. Re1 {[%emt 0:01:05]} Bg7 {[%emt 0:01:56]} 17. Nd2 {[%emt 0:06:41]} Qxd4 {[%emt 0:04:39]} 18. Ra2 {[%emt 0:01:02]} h6 {[%emt 0:08:22]} 19. Nf3 {[%emt 0:00:40]} Qd6 {[%emt 0:01:45]} 20. Rd2 {[%emt 0:09:09]} Qc7 {[%emt 0:00:50]} 21. Rde2 {[%emt 0:00:20]} Rae8 {[%emt 0:04:55]} 22. Ne5+ {[%emt 0:04:19]} Bxe5 {[%emt 0:00:41]} 23. Rxe5 {[%emt 0:00:04]} Nc8 {[%emt 0:00:58]} 24. c5 {[%emt 0:00:56]} Ne7 {[%emt 0:04:06]} 25. Bb2 {[%emt 0:01:38]} Nd5 {[%emt 0:02:56]} 26. Qd4 {[%emt 0:03:38]} Rh7 {[%emt 0:02:45]} 27. Rxd5 {[%emt 0:01:28]} cxd5 {[%emt 0:00:31]} 28. Qf6+ {[%emt 0:00:05]} Kg8 {[%emt 0:00:10]} 29. Qxg6+ {[%emt 0:00:32]} Kf8 {[%emt 0:00:07]} 30. Be5 {[%emt 0:00:25]} Qa5 {[%emt 0:04:34]} 31. Ra1 {[%emt 0:00:39]} 1-0

[Event "EYCC Open-U18 2019"]
[Site "Bratislava"]
[Date "2019.08.07"]
[Round "6.24"]
[White "Veleshnja, Zino"]
[Black "Mitsis, Georgios"]
[Result "0-1"]
[ECO "A40"]
[WhiteElo "2131"]
[BlackElo "2399"]
[Annotator "NA"]
[PlyCount "80"]
[EventDate "2019.08.02"]
[EventType "swiss"]
[EventCountry "SVK"]
[SourceTitle "playchess.com"]
[Source "ChessBase"]
[SourceQuality "1"]
[TimeControl "40/5400+30:1800+30"]

1. d4 {[%emt 0:00:00]} Nf6 {[%emt 0:00:00]} 2. c4 {[%emt 0:00:00]} e6 {[%emt 0:00:00]} 3. g3 {[%emt 0:00:00]} c5 {[%emt 0:00:00]} 4. Nf3 {[%emt 0:00:00]} cxd4 {[%emt 0:00:00]} 5. Nxd4 {[%emt 0:00:00]} Nc6 {[%emt 0:00:03]} 6. Bg2 {[%emt 0:01:56]} Qb6 {[%emt 0:00:33]} 7. Nb3 {[%emt 0:01:59]} Ne5 {[%emt 0:04:42]} 8. Qc2 {[%emt 0:28:29]} d6 {[%emt 0:04:38]} 9. O-O {[%emt 0:01:55]} Be7 {[%emt 0:07:10]} 10. Bf4 {[%emt 0:05:39]} Ng6 {[%emt 0:01:03]} 11. Be3 {[%emt 0:01:06]} Qc7 {[%emt 0:00:31]} 12. Na3 {[%emt 0:04:11]} a6 {[%emt 0:01:10]} 13. Rfd1 {[%emt 0:06:18]} O-O {[%emt 0:01:33]} 14. Rac1 {[%emt 0:04:02]} Bd7 {[%emt 0:01:12]} 15. Qd2 {[%emt 0:01:46]} Bc6 {[%emt 0:05:07]} 16. Nb5 {[%emt 0:07:12]} axb5 {[%emt 0:03:09]} 17. cxb5 {[%emt 0:00:05]} d5 {[%emt 0:00:09]} 18. bxc6 {[%emt 0:01:11]} Rxa2 {[%emt 0:00:52]} 19. Nd4 {[%emt 0:02:57]} bxc6 {[%emt 0:05:37]} 20. Nxc6 {[%emt 0:01:35]} Qb7 {[%emt 0:05:34]} 21. Nxe7+ {[%emt 0:00:11]} Nxe7 {[%emt 0:00:06]} 22. Rc2 {[%emt 0:01:00]} Nd7 {[%emt 0:10:39]} 23. Rb1 {[%emt 0:03:59]} Rc8 {[%emt 0:01:57]} 24. Rxc8+ {[%emt 0:00:46]} Nxc8 {[%emt 0:00:04]} 25. Qc3 {[%emt 0:02:44]} Nd6 {[%emt 0:01:30]} 26. b4 {[%emt 0:02:26]} Nb5 {[%emt 0:00:51]} 27. Qb3 {[%emt 0:00:48]} Ra3 {[%emt 0:00:09]} 28. Qb2 {[%emt 0:00:49]} h6 {[%emt 0:01:11]} 29. Bd4 {[%emt 0:02:22]} f6 {[%emt 0:02:45]} 30. Ra1 {[%emt 0:02:23]} Rxa1+ {[%emt 0:00:14]} 31. Qxa1 {[%emt 0:00:06]} Qc6 {[%emt 0:02:46]} 32. Be3 {[%emt 0:01:46]} Nc3 {[%emt 0:04:24]} 33. Qb2 {[%emt 0:03:14]} Qc4 {[%emt 0:00:19]} 34. Bf1 {[%emt 0:01:49]} Kf7 {[%emt 0:01:15]} 35. Ba7 {[%emt 0:04:48]} d4 {[%emt 0:04:13]} 36. e3 {[%emt 0:02:36]} d3 {[%emt 0:00:28]} 37. Bd4 {[%emt 0:01:18]} Nd5 {[%emt 0:05:06]} 38. b5 {[%emt 0:04:29]} e5 {[%emt 0:00:05]} 39. Ba7 {[%emt 0:00:23]} Qc2 {[%emt 0:00:26]} 40. Qa1 {[%emt 0:00:00]} d2 {[%emt 0:00:00]} 0-1

[Event "EYCC Open-U18 2019"]
[Site "Bratislava"]
[Date "2019.08.07"]
[Round "6.25"]
[White "Akdogan, Alperen"]
[Black "Chylewski, Patryk"]
[Result "1/2-1/2"]
[ECO "A46"]
[WhiteElo "2193"]
[BlackElo "2376"]
[Annotator "NA"]
[PlyCount "46"]
[EventDate "2019.08.02"]
[EventType "swiss"]
[EventCountry "SVK"]
[SourceTitle "playchess.com"]
[Source "ChessBase"]
[SourceQuality "1"]
[TimeControl "40/5400+30:1800+30"]

1. d4 {[%emt 0:00:00]} Nf6 {[%emt 0:00:00]} 2. Nf3 {[%emt 0:00:00]} d5 {[%emt 0:00:00]} 3. c4 {[%emt 0:00:00]} e6 {[%emt 0:00:00]} 4. g3 {[%emt 0:00:06]} Bb4+ {[%emt 0:00:00]} 5. Bd2 {[%emt 0:00:06]} Bd6 {[%emt 0:00:01]} 6. Bg2 {[%emt 0:00:25]} c6 {[%emt 0:00:17]} 7. Qc2 {[%emt 0:00:10]} Nbd7 {[%emt 0:00:13]} 8. O-O O-O {[%emt 0:00:05]} 9. Rd1 {[%emt 0:00:19]} Qe7 {[%emt 0:00:36]} 10. Bg5 {[%emt 0:02:22]} h6 {[%emt 0:02:44]} 11. Bxf6 {[%emt 0:00:07]} Nxf6 {[%emt 0:00:15]} 12. Nbd2 {[%emt 0:00:41]} c5 {[%emt 0:11:00]} 13. e4 dxe4 {[%emt 0:00:38]} 14. Nxe4 {[%emt 0:06:23]} Nxe4 {[%emt 0:00:05]} 15. Qxe4 {[%emt 0:00:05]} a5 {[%emt 0:00:50]} 16. Ne5 {[%emt 0:11:11]} cxd4 {[%emt 0:07:34]} 17. Qxd4 {[%emt 0:05:14]} Ra6 {[%emt 0:03:22]} 18. Rac1 {[%emt 0:03:17]} Qc7 {[%emt 0:04:24]} 19. Nd3 {[%emt 0:07:32]} Be7 {[%emt 0:02:05]} 20. Qe5 {[%emt 0:04:31]} Bd6 {[%emt 0:11:18]} 21. Qe3 {[%emt 0:03:41]} Be7 {[%emt 0:04:17]} 22. Qe5 {[%emt 0:09:48]} Bd6 {[%emt 0:12:28]} 23. Qe3 {[%emt 0:15:42]} Be7 {[%emt 0:09:21]} 1/2-1/2

[Event "EYCC Open-U18 2019"]
[Site "Bratislava"]
[Date "2019.08.07"]
[Round "6.26"]
[White "Ludvik, Tomas"]
[Black "Brinovec, David"]
[Result "0-1"]
[ECO "D43"]
[WhiteElo "2334"]
[BlackElo "2205"]
[Annotator "NA"]
[PlyCount "64"]
[EventDate "2019.08.02"]
[EventType "swiss"]
[EventCountry "SVK"]
[SourceTitle "playchess.com"]
[Source "ChessBase"]
[SourceQuality "1"]
[TimeControl "40/5400+30:1800+30"]

1. Nf3 {[%emt 0:00:00]} d5 {[%emt 0:00:00]} 2. c4 {[%emt 0:00:00]} e6 {[%emt 0:00:00]} 3. d4 {[%emt 0:00:04]} c6 {[%emt 0:00:00]} 4. Nc3 {[%emt 0:01:41]} Nf6 {[%emt 0:02:14]} 5. Bg5 {[%emt 0:00:14]} Nbd7 {[%emt 0:00:19]} 6. cxd5 {[%emt 0:01:26]} exd5 {[%emt 0:00:57]} 7. Qc2 {[%emt 0:00:18]} Be7 {[%emt 0:01:51]} 8. e3 {[%emt 0:00:30]} O-O {[%emt 0:08:21]} 9. Bd3 {[%emt 0:00:34]} Re8 {[%emt 0:00:19]} 10. O-O {[%emt 0:00:18]} Nf8 {[%emt 0:01:09]} 11. h3 {[%emt 0:00:24]} Ne4 {[%emt 0:17:34]} 12. Bf4 {[%emt 0:00:37]} f5 {[%emt 0:01:52]} 13. Rab1 {[%emt 0:10:03]} a5 {[%emt 0:03:30]} 14. a3 {[%emt 0:08:56]} g5 {[%emt 0:07:33]} 15. Bh2 {[%emt 0:10:33]} Ng6 {[%emt 0:01:15]} 16. Na4 {[%emt 0:02:24]} Bd6 {[%emt 0:08:03]} 17. Bxd6 {[%emt 0:01:14]} Qxd6 {[%emt 0:00:44]} 18. Rfc1 {[%emt 0:08:13]} Qf6 {[%emt 0:04:32]} 19. Nc5 {[%emt 0:05:38]} b6 {[%emt 0:02:30]} 20. Na4 {[%emt 0:03:53]} b5 {[%emt 0:09:10]} 21. Nc5 {[%emt 0:06:05]} Ra7 {[%emt 0:04:34]} 22. Re1 {[%emt 0:06:28]} Rae7 {[%emt 0:03:38]} 23. Rbc1 {[%emt 0:02:29]} g4 {[%emt 0:01:23]} 24. hxg4 {[%emt 0:02:08]} fxg4 {[%emt 0:00:07]} 25. Bxe4 {[%emt 0:00:40]} gxf3 {[%emt 0:02:59]} 26. Bxg6 {[%emt 0:02:19]} Rg7 {[%emt 0:03:33]} 27. Nd3 {[%emt 0:06:47]} Rxg6 {[%emt 0:00:24]} 28. g3 {[%emt 0:01:54]} Bf5 {[%emt 0:01:15]} 29. Qd1 {[%emt 0:05:44]} Bxd3 {[%emt 0:00:53]} 30. Qxd3 {[%emt 0:00:05]} Re4 {[%emt 0:00:17]} 31. Rc2 {[%emt 0:03:23]} Rh6 {[%emt 0:06:07]} 32. Qf1 {[%emt 0:06:45]} Reh4 {[%emt 0:00:20]} 0-1

[Event "EYCC Open-U18 2019"]
[Site "Bratislava"]
[Date "2019.08.07"]
[Round "6.27"]
[White "Mirri, Pietro"]
[Black "Storme, Isak"]
[Result "1-0"]
[ECO "D11"]
[WhiteElo "2194"]
[BlackElo "2330"]
[Annotator "NA"]
[PlyCount "95"]
[EventDate "2019.08.02"]
[EventType "swiss"]
[EventCountry "SVK"]
[SourceTitle "playchess.com"]
[Source "ChessBase"]
[SourceQuality "1"]
[TimeControl "40/5400+30:1800+30"]

1. d4 {[%emt 0:00:00]} d5 {[%emt 0:00:00]} 2. c4 {[%emt 0:00:00]} c6 {[%emt 0:00:00]} 3. Nf3 {[%emt 0:00:00]} Nf6 {[%emt 0:00:00]} 4. g3 {[%emt 0:00:00]} dxc4 {[%emt 0:00:00]} 5. Bg2 {[%emt 0:00:00]} g6 {[%emt 0:00:00]} 6. Ne5 {[%emt 0:01:03]} Bg7 {[%emt 0:02:55]} 7. Nxc4 {[%emt 0:00:43]} Be6 {[%emt 0:00:47]} 8. Nba3 {[%emt 0:06:18]} Na6 {[%emt 0:13:17]} 9. O-O {[%emt 0:02:26]} h5 {[%emt 0:00:37]} 10. h3 {[%emt 0:16:34]} Bd5 {[%emt 0:05:34]} 11. f3 {[%emt 0:02:17]} c5 {[%emt 0:04:53]} 12. Be3 {[%emt 0:09:38]} O-O {[%emt 0:12:17]} 13. Rc1 {[%emt 0:04:15]} b5 {[%emt 0:14:22]} 14. Nxb5 {[%emt 0:13:01]} Qb8 {[%emt 0:01:44]} 15. a4 {[%emt 0:00:41]} Qxg3 {[%emt 0:02:48]} 16. dxc5 {[%emt 0:10:26]} Rfc8 {[%emt 0:08:47]} 17. Bf2 {[%emt 0:08:01]} Qf4 {[%emt 0:08:04]} 18. e4 {[%emt 0:01:35]} Be6 {[%emt 0:05:00]} 19. Na5 {[%emt 0:03:59]} Nd7 {[%emt 0:02:59]} 20. c6 {[%emt 0:03:13]} Be5 {[%emt 0:01:29]} 21. Re1 {[%emt 0:01:50]} Nf6 {[%emt 0:01:31]} 22. Kf1 {[%emt 0:01:52]} Nb4 {[%emt 0:02:17]} 23. Qe2 {[%emt 0:02:54]} Rd8 {[%emt 0:03:53]} 24. Rcd1 {[%emt 0:00:19]} h4 {[%emt 0:01:36]} 25. Qe3 {[%emt 0:02:58]} Qxe3 {[%emt 0:03:29]} 26. Bxe3 {[%emt 0:01:00]} Nc2 {[%emt 0:00:23]} 27. Rxd8+ {[%emt 0:00:55]} Rxd8 {[%emt 0:00:03]} 28. c7 {[%emt 0:02:15]} Rd3 {[%emt 0:02:11]} 29. Rc1 {[%emt 0:00:42]} Rd1+ {[%emt 0:02:20]} 30. Rxd1 {[%emt 0:01:00]} Nxe3+ {[%emt 0:00:02]} 31. Ke2 {[%emt 0:00:05]} Nxd1 {[%emt 0:00:06]} 32. Kxd1 {[%emt 0:00:54]} a6 {[%emt 0:00:07]} 33. Nc6 {[%emt 0:01:40]} axb5 {[%emt 0:00:31]} 34. Nxe5 {[%emt 0:00:15]} Ne8 {[%emt 0:01:31]} 35. axb5 {[%emt 0:01:42]} Nxc7 {[%emt 0:00:06]} 36. b6 {[%emt 0:00:48]} Na6 {[%emt 0:00:04]} 37. Nc6 {[%emt 0:00:19]} Nc5 {[%emt 0:00:25]} 38. b4 {[%emt 0:01:06]} Nb7 {[%emt 0:00:28]} 39. Na5 {[%emt 0:00:16]} Bc8 {[%emt 0:00:25]} 40. e5 {[%emt 0:00:00]} Nd8 {[%emt 0:00:00]} 41. f4 {[%emt 0:01:14]} Kf8 {[%emt 0:02:17]} 42. b7 {[%emt 0:00:12]} Nxb7 {[%emt 0:00:06]} 43. Nxb7 {[%emt 0:00:04]} Ke8 {[%emt 0:00:24]} 44. Nc5 {[%emt 0:00:40]} Kd8 {[%emt 0:00:15]} 45. Kd2 {[%emt 0:00:29]} Kc7 {[%emt 0:00:22]} 46. Kc3 {[%emt 0:00:22]} f6 {[%emt 0:00:40]} 47. e6 {[%emt 0:00:32]} g5 {[%emt 0:00:28]} 48. f5 {[%emt 0:01:06]} 1-0

[Event "EYCC Open-U18 2019"]
[Site "Bratislava"]
[Date "2019.08.07"]
[Round "6.28"]
[White "Brozyna, Mateusz"]
[Black "Garayev, Kanan"]
[Result "0-1"]
[ECO "C10"]
[WhiteElo "2258"]
[BlackElo "2351"]
[Annotator "NA"]
[PlyCount "86"]
[EventDate "2019.08.02"]
[EventType "swiss"]
[EventCountry "SVK"]
[SourceTitle "playchess.com"]
[Source "ChessBase"]
[SourceQuality "1"]
[TimeControl "40/5400+30:1800+30"]

1. e4 {[%emt 0:00:00]} e6 {[%emt 0:00:00]} 2. d4 {[%emt 0:00:00]} d5 {[%emt 0:00:00]} 3. Nc3 {[%emt 0:00:00]} Nc6 {[%emt 0:00:00]} 4. Nf3 {[%emt 0:01:35]} Nf6 {[%emt 0:00:01]} 5. Bg5 {[%emt 0:05:07]} Be7 {[%emt 0:04:28]} 6. Bxf6 {[%emt 0:12:35]} Bxf6 {[%emt 0:00:06]} 7. e5 {[%emt 0:00:11]} Be7 {[%emt 0:00:17]} 8. a3 {[%emt 0:05:16]} O-O {[%emt 0:03:24]} 9. Bd3 {[%emt 0:00:12]} f6 {[%emt 0:01:13]} 10. h4 {[%emt 0:04:19]} fxe5 {[%emt 0:29:55]} 11. dxe5 {[%emt 0:04:50]} Qe8 {[%emt 0:03:13]} 12. Qe2 {[%emt 0:12:02]} Rxf3 {[%emt 0:11:06]} 13. Qxf3 {[%emt 0:08:44]} Nxe5 {[%emt 0:00:09]} 14. Qe2 {[%emt 0:00:52]} Nxd3+ {[%emt 0:07:02]} 15. Qxd3 {[%emt 0:02:24]} c6 {[%emt 0:02:55]} 16. f4 {[%emt 0:06:41]} Qf7 {[%emt 0:03:21]} 17. g3 {[%emt 0:04:06]} e5 {[%emt 0:03:36]} 18. fxe5 {[%emt 0:05:07]} Bg4 {[%emt 0:00:02]} 19. Ne2 {[%emt 0:06:03]} Qh5 {[%emt 0:04:07]} 20. Qe3 {[%emt 0:05:03]} Re8 {[%emt 0:03:40]} 21. Nf4 {[%emt 0:01:58]} Qf5 {[%emt 0:00:01]} 22. Nd3 {[%emt 0:04:26]} Bf6 {[%emt 0:06:23]} 23. Rf1 {[%emt 0:03:32]} Qh5 {[%emt 0:00:01]} 24. Kd2 {[%emt 0:01:49]} Bxe5 {[%emt 0:01:09]} 25. Rae1 {[%emt 0:02:18]} Bc3+ {[%emt 0:01:41]} 26. bxc3 {[%emt 0:00:01]} Rxe3 {[%emt 0:00:04]} 27. Rxe3 {[%emt 0:00:03]} h6 {[%emt 0:05:31]} 28. Re7 {[%emt 0:01:34]} Bh3 {[%emt 0:00:26]} 29. Rf4 {[%emt 0:01:15]} Bg2 {[%emt 0:06:48]} 30. Ne5 {[%emt 0:00:56]} Be4 {[%emt 0:00:11]} 31. Nd7 {[%emt 0:01:33]} Bf5 {[%emt 0:00:50]} 32. Ne5 {[%emt 0:00:33]} Be4 {[%emt 0:00:40]} 33. Nd7 {[%emt 0:00:31]} Bf5 {[%emt 0:00:01]} 34. Re5 {[%emt 0:00:48]} Qf7 {[%emt 0:00:10]} 35. Nc5 {[%emt 0:00:28]} g6 {[%emt 0:00:11]} 36. g4 {[%emt 0:00:19]} Qc7 {[%emt 0:00:34]} 37. Nd3 {[%emt 0:00:45]} Bxd3 {[%emt 0:00:09]} 38. Re8+ {[%emt 0:00:11]} Kg7 {[%emt 0:00:01]} 39. Rff8 {[%emt 0:00:07]} Qh2+ {[%emt 0:03:19]} 40. Kxd3 {[%emt 0:00:00]} Qxh4 {[%emt 0:00:00]} 41. g5 {[%emt 0:10:06]} Qg3+ {[%emt 0:04:00]} 42. Ke2 {[%emt 0:01:48]} Qxc3 {[%emt 0:00:35]} 43. Rh8 {[%emt 0:02:07]} hxg5 {[%emt 0:01:32]} 0-1

[Event "EYCC Open-U18 2019"]
[Site "Bratislava"]
[Date "2019.08.07"]
[Round "6.29"]
[White "Santryan, Davit"]
[Black "Leisch, Lukas"]
[Result "1-0"]
[ECO "A49"]
[WhiteElo "2167"]
[BlackElo "2327"]
[Annotator "NA"]
[PlyCount "81"]
[EventDate "2019.08.02"]
[EventType "swiss"]
[EventCountry "SVK"]
[SourceTitle "playchess.com"]
[Source "ChessBase"]
[SourceQuality "1"]
[TimeControl "40/5400+30:1800+30"]

1. d4 {[%emt 0:01:03]} Nf6 {[%emt 0:00:00]} 2. Nf3 {[%emt 0:01:18]} g6 {[%emt 0:00:00]} 3. g3 {[%emt 0:00:45]} Bg7 {[%emt 0:00:00]} 4. Bg2 {[%emt 0:00:27]} O-O {[%emt 0:00:00]} 5. O-O {[%emt 0:00:08]} d6 {[%emt 0:00:00]} 6. b3 {[%emt 0:00:23]} b5 {[%emt 0:00:05]} 7. Ne1 {[%emt 0:20:01]} c6 {[%emt 0:00:06]} 8. Bb2 {[%emt 0:02:15]} a5 {[%emt 0:00:12]} 9. c4 {[%emt 0:03:27]} bxc4 {[%emt 0:04:15]} 10. bxc4 {[%emt 0:02:44]} d5 {[%emt 0:02:41]} 11. Nd2 {[%emt 0:00:50]} Bf5 {[%emt 0:09:44]} 12. Nd3 {[%emt 0:07:03]} Na6 {[%emt 0:07:00]} 13. Ne5 {[%emt 0:03:25]} Qc7 {[%emt 0:08:28]} 14. Rc1 {[%emt 0:04:37]} Qb7 {[%emt 0:03:33]} 15. Ba1 {[%emt 0:05:24]} Rfc8 {[%emt 0:02:45]} 16. e3 {[%emt 0:05:31]} Rab8 {[%emt 0:13:50]} 17. g4 {[%emt 0:03:13]} Be6 {[%emt 0:00:39]} 18. f4 {[%emt 0:05:59]} Nc7 {[%emt 0:16:46]} 19. g5 {[%emt 0:12:13]} Nfe8 {[%emt 0:02:38]} 20. Nxc6 {[%emt 0:05:00]} Qxc6 {[%emt 0:00:07]} 21. cxd5 {[%emt 0:00:06]} Qd7 {[%emt 0:01:14]} 22. dxe6 {[%emt 0:00:30]} Qxe6 {[%emt 0:00:09]} 23. Nc4 {[%emt 0:04:01]} Nd5 {[%emt 0:03:20]} 24. Qf3 {[%emt 0:03:43]} Rd8 {[%emt 0:07:17]} 25. e4 {[%emt 0:01:37]} Nb4 {[%emt 0:00:18]} 26. d5 {[%emt 0:01:25]} Qa6 {[%emt 0:00:15]} 27. Bxg7 {[%emt 0:01:31]} Nxg7 {[%emt 0:00:06]} 28. a3 {[%emt 0:01:06]} Na2 {[%emt 0:02:18]} 29. Rc2 {[%emt 0:00:18]} Rdc8 {[%emt 0:00:04]} 30. Qe2 {[%emt 0:03:07]} Rb3 {[%emt 0:00:16]} 31. Nxa5 {[%emt 0:01:35]} Qb6+ {[%emt 0:06:49]} 32. Kh1 {[%emt 0:00:05]} Nc3 {[%emt 0:00:29]} 33. Qg4 {[%emt 0:00:09]} Nf5 {[%emt 0:03:43]} 34. Nxb3 {[%emt 0:00:42]} Qxb3 {[%emt 0:00:23]} 35. Rxc3 {[%emt 0:00:16]} Rxc3 {[%emt 0:00:34]} 36. exf5 {[%emt 0:00:05]} Qxa3 {[%emt 0:00:04]} 37. fxg6 {[%emt 0:00:07]} hxg6 {[%emt 0:00:08]} 38. f5 {[%emt 0:00:06]} Rc1 {[%emt 0:01:09]} 39. fxg6 {[%emt 0:00:09]} Rxf1+ {[%emt 0:00:04]} 40. Bxf1 {[%emt 0:00:00]} fxg6 {[%emt 0:00:00]} 41. h4 {[%emt 0:01:59]} 1-0

[Event "EYCC Open-U18 2019"]
[Site "Bratislava"]
[Date "2019.08.07"]
[Round "6.30"]
[White "Triantos, Konstantinos"]
[Black "Ciorgovean, Iustin"]
[Result "1-0"]
[ECO "B92"]
[WhiteElo "2129"]
[BlackElo "2330"]
[Annotator "NA"]
[PlyCount "97"]
[EventDate "2019.08.02"]
[EventType "swiss"]
[EventCountry "SVK"]
[SourceTitle "playchess.com"]
[Source "ChessBase"]
[SourceQuality "1"]
[TimeControl "40/5400+30:1800+30"]

1. e4 {[%emt 0:00:00]} c5 {[%emt 0:00:00]} 2. Nf3 {[%emt 0:00:00]} d6 {[%emt 0:00:00]} 3. d4 {[%emt 0:00:00]} cxd4 {[%emt 0:00:00]} 4. Nxd4 {[%emt 0:00:00]} Nf6 {[%emt 0:00:00]} 5. Nc3 {[%emt 0:00:00]} a6 {[%emt 0:00:00]} 6. Be2 {[%emt 0:00:00]} e5 {[%emt 0:00:02]} 7. Nf3 {[%emt 0:00:09]} Be7 {[%emt 0:00:38]} 8. Bg5 {[%emt 0:00:13]} Be6 {[%emt 0:01:00]} 9. Bxf6 {[%emt 0:00:40]} Bxf6 {[%emt 0:00:05]} 10. O-O {[%emt 0:00:22]} O-O {[%emt 0:01:37]} 11. Nd5 {[%emt 0:02:53]} Nd7 {[%emt 0:06:10]} 12. Bc4 {[%emt 0:00:14]} Rc8 {[%emt 0:02:54]} 13. Bb3 {[%emt 0:00:34]} Be7 {[%emt 0:04:51]} 14. Qe2 {[%emt 0:11:39]} Nc5 {[%emt 0:09:00]} 15. Rfd1 {[%emt 0:01:13]} g6 {[%emt 0:12:05]} 16. c3 {[%emt 0:06:59]} Nxb3 {[%emt 0:08:42]} 17. axb3 {[%emt 0:00:19]} f5 {[%emt 0:01:27]} 18. exf5 {[%emt 0:08:14]} gxf5 {[%emt 0:00:52]} 19. Qd2 {[%emt 0:07:33]} Rc6 {[%emt 0:05:25]} 20. Qh6 {[%emt 0:01:23]} Qd7 {[%emt 0:09:12]} 21. Nb4 {[%emt 0:06:14]} Rc5 {[%emt 0:13:15]} 22. Nd3 {[%emt 0:08:56]} Rd5 {[%emt 0:00:14]} 23. c4 {[%emt 0:02:42]} Rxd3 {[%emt 0:02:36]} 24. Rxd3 {[%emt 0:00:07]} Rf6 {[%emt 0:00:26]} 25. Qh5 {[%emt 0:02:33]} e4 {[%emt 0:07:31]} 26. Ne5 {[%emt 0:02:01]} Qc8 {[%emt 0:02:24]} 27. Rh3 {[%emt 0:00:36]} dxe5 {[%emt 0:00:30]} 28. Qxh7+ {[%emt 0:00:25]} Kf8 {[%emt 0:00:05]} 29. Qh8+ {[%emt 0:00:53]} Bg8 {[%emt 0:00:09]} 30. Rg3 {[%emt 0:00:24]} Qe6 {[%emt 0:01:39]} 31. Qg7+ {[%emt 0:00:10]} Ke8 {[%emt 0:00:04]} 32. Qxg8+ {[%emt 0:00:05]} Qxg8 {[%emt 0:00:04]} 33. Rxg8+ {[%emt 0:00:03]} Kf7 {[%emt 0:00:17]} 34. Rg5 {[%emt 0:01:44]} Rh6 {[%emt 0:00:53]} 35. Rxf5+ {[%emt 0:03:10]} Ke6 {[%emt 0:00:04]} 36. g4 {[%emt 0:00:03]} Rh4 {[%emt 0:00:03]} 37. h3 {[%emt 0:03:08]} Rxh3 {[%emt 0:00:04]} 38. Re1 {[%emt 0:00:29]} Rxb3 {[%emt 0:00:31]} 39. Rxe4 {[%emt 0:00:06]} Bd6 {[%emt 0:00:11]} 40. Re2 {[%emt 0:00:00]} Rb4 {[%emt 0:00:00]} 41. Rf4 {[%emt 0:09:02]} b5 {[%emt 0:00:55]} 42. g5 {[%emt 0:00:20]} bxc4 {[%emt 0:02:01]} 43. g6 {[%emt 0:00:23]} Kd5 {[%emt 0:12:51]} 44. Rd2+ {[%emt 0:03:09]} Kc5 {[%emt 0:01:48]} 45. g7 {[%emt 0:00:35]} Rb8 {[%emt 0:01:32]} 46. Rf6 {[%emt 0:00:22]} Be7 {[%emt 0:00:40]} 47. Rf7 {[%emt 0:00:33]} Bd6 {[%emt 0:00:23]} 48. Rxd6 {[%emt 0:00:55]} Kxd6 {[%emt 0:00:05]} 49. Rf8 {[%emt 0:00:02]} 1-0